bitfinex-derivatives/quotes_ETHF0:USTF0_20250906
["timestamp","ask_amount","ask_price","bid_price","bid_amount"]
[1757181457141,0.3162,4272.4,4272.2,0.322]
[1757181457438,3.2078,4272.7,4272.2,0.322]
[1757181457439,3.2078,4273.7,4272.9,0.322]
[1757181457631,0.79485092,4273.4,4273.3,0.727]
[1757181457836,0.99845092,4273.4,4273.3,0.727]
[1757181458037,0.3162,4273.6,4273.3,0.727]
[1757181458239,0.5252,4274.0,4273.9,0.405]
[1757181458537,3.2078,4274.3,4273.9,0.641]
[1757181458739,3.9257,4274.3,4274.2,0.405]
[1757181458935,3.9257,4274.3,4274.2,0.641]
[1757181460549,0.7179,4274.3,4274.2,0.641]
[1757181463358,0.7179,4274.3,4274.2,0.963]
[1757181465156,0.7179,4274.3,4274.2,0.641]
[1757181465549,0.7179,4274.3,4274.2,0.236]
[1757181465752,0.1981,4273.4,4273.3,0.727]
[1757181465958,0.5143,4273.4,4273.3,0.963]
[1757181466260,0.5143,4273.4,4273.3,1.19701]
[1757181467761,0.5143,4273.4,4273.3,0.963]
[1757181470062,0.5143,4273.4,4273.3,0.727]
[1757181470262,0.5143,4273.4,4273.3,0.963]
[1757181470663,0.3162,4273.4,4273.3,0.963]
[1757181470964,0.7037,4273.9,4273.8,0.3946]
[1757181471263,0.7037,4273.9,4273.8,0.4303]
[1757181473464,0.7037,4273.9,4273.8,0.1943]
[1757181473664,0.7037,4273.9,4273.8,0.4303]
[1757181476167,0.7037,4273.9,4273.8,0.236]
[1757181476766,0.7037,4273.9,4273.8,0.4303]
[1757181478762,0.7037,4273.9,4273.8,0.236]
[1757181478962,0.1173,4274.0,4273.2,3.4021]
[1757181478963,0.3951,4273.3,4273.2,3.4021]
[1757181479268,0.7037,4273.3,4273.2,3.6381]
[1757181479463,0.7037,4273.3,4273.2,3.8384]
[1757181479962,0.7037,4273.3,4273.2,4.1317]
[1757181480667,0.3086,4273.3,4273.2,4.1317]
[1757181480968,0.5034,4273.3,4273.2,4.1317]
[1757181481565,0.7037,4273.3,4273.2,4.1317]
[1757181481762,0.7037,4273.3,4273.2,3.8957]
[1757181481965,0.7037,4273.3,4273.2,4.1317]
[1757181482167,0.5034,4273.3,4273.2,4.1317]
[1757181485770,0.5034,4273.3,4273.2,3.8957]
[1757181486068,0.5034,4273.3,4273.2,4.1317]
[1757181486466,0.7037,4273.3,4273.2,3.8957]
[1757181486766,0.7037,4273.3,4273.2,3.2078]
[1757181486966,0.7037,4273.3,4273.2,3.4438]
[1757181489374,0.7037,4273.3,4273.2,3.6381]
[1757181490975,0.7037,4273.3,4273.2,0.4303]
[1757181491175,0.7037,4273.3,4273.2,0.9239]
[1757181491769,0.3086,4273.5,4273.4,0.3946]
[1757181491971,0.3086,4273.5,4273.4,0.9239]
[1757181492173,0.8263,4273.5,4273.4,0.6306]
[1757181493177,0.8263,4273.5,4273.4,0.9239]
[1757181496879,0.8263,4273.5,4273.4,0.6306]
[1757181497175,0.8263,4273.5,4273.4,0.4303]
[1757181499083,0.8263,4273.5,4273.4,0.925]
[1757181507981,0.626,4273.5,4273.4,0.925]
[1757181509593,0.3086,4273.5,4273.4,0.925]
[1757181509780,3.3251,4274.0,4273.5,0.2944]
[1757181509981,0.7232,4273.9,4273.8,0.3974]
[1757181513695,0.7232,4273.9,4273.8,0.6918]
[1757181513989,0.7232,4273.9,4273.8,0.1959]
[1757181514391,0.7232,4273.9,4273.7,0.236]
[1757181516991,0.7232,4273.9,4273.8,0.1959]
[1757181517887,0.7232,4273.9,4273.7,0.236]
[1757181527705,0.7232,4272.8,4272.7,3.2078]
[1757181528000,0.7232,4272.8,4272.7,3.8996]
[1757181528396,0.5145,4272.8,4272.7,3.8996]
[1757181529300,0.7232,4272.8,4272.7,3.8996]
[1757181532105,0.5145,4272.8,4272.7,3.8996]
[1757181538905,3.2078,4273.4,4272.7,3.8996]
[1757181538906,0.2976,4273.3,4272.8,0.318]
[1757181539115,0.5056,4273.3,4273.2,0.7317]
[1757181539311,0.5056,4273.3,4273.2,0.9677]
[1757181543715,0.7052,4273.3,4273.2,0.9677]
[1757181546014,0.7052,4273.3,4273.2,4.1755]
[1757181546217,0.7052,4273.3,4273.2,0.9677]
[1757181547217,0.2976,4273.3,4273.2,0.9677]
[1757181547716,0.5056,4273.3,4273.2,0.9677]
[1757181548117,0.7052,4273.3,4273.2,0.9677]
[1757181552320,0.1173,4274.0,4273.3,0.318]
[1757181552520,0.7052,4273.9,4273.8,0.2033]
[1757181555022,0.7052,4273.9,4273.8,0.4137]
[1757181555322,0.7052,4273.9,4273.8,0.7317]
[1757181561018,0.7052,4273.9,4273.8,3.9395]
[1757181561727,0.5115,4274.4,4274.3,0.699]
[1757181561925,0.5141,4275.0,4274.9,0.1972]
[1757181562133,0.5141,4275.0,4274.9,0.4332]
[1757181562424,0.3204,4275.0,4274.9,0.935]
[1757181562725,0.8295,4275.5,4275.4,0.1972]
[1757181565126,0.8295,4275.5,4275.4,0.4004]
[1757181566229,0.8295,4275.5,4275.4,0.1972]
[1757181566525,0.5141,4275.5,4274.9,0.5346]
[1757181566729,0.1961,4275.0,4274.9,0.935]
[1757181567028,0.5115,4275.0,4274.9,0.935]
[1757181567332,0.5115,4275.0,4274.9,0.699]
[1757181567535,0.8332,4275.0,4274.9,0.6364]
[1757181568226,0.1243,4274.5,4274.3,3.2078]
[1757181568426,0.7089,4274.4,4274.3,3.405]
[1757181568730,0.7089,4274.4,4274.3,3.641]
[1757181569122,0.7089,4274.4,4274.3,4.1428]
[1757181569626,0.7089,4274.4,4274.3,3.8442]
[1757181569827,0.7089,4274.4,4274.3,4.1428]
[1757181571828,0.7089,4274.4,4274.3,3.9068]
[1757181572028,0.7089,4274.4,4274.3,4.1428]
[1757181573630,0.1243,4274.5,4274.3,4.1428]
[1757181573631,0.3154,4275.4,4274.4,0.2986]
[1757181573826,0.3935,4275.4,4274.8,3.2078]
[1757181574026,0.8332,4275.0,4274.9,0.4342]
[1757181574426,0.8332,4275.0,4274.9,0.6374]
[1757181575126,0.7089,4275.9,4275.2,0.2986]
[1757181575327,0.7089,4275.9,4275.3,0.237]
[1757181575523,0.5178,4275.5,4275.4,0.1972]
[1757181576128,0.8332,4275.5,4275.4,0.1972]
[1757181580137,0.3154,4275.4,4275.3,3.4448]
[1757181580437,0.5115,4275.4,4275.3,4.1438]
[1757181581237,0.7089,4275.4,4275.3,4.1438]
[1757181583438,0.5115,4275.4,4275.3,4.1438]
[1757181585540,0.7089,4275.4,4275.3,3.6082]
[1757181585733,0.7089,4275.4,4275.3,3.8462]
[1757181587146,0.7089,4275.4,4275.3,4.1448]
[1757181588047,0.7089,4275.4,4275.3,3.8462]
[1757181588746,0.7089,4275.4,4275.3,4.1448]
[1757181592843,0.4029,4274.9,4274.8,3.2078]
[1757181593049,0.7007,4274.9,4274.8,3.4458]
[1757181595047,0.7007,4274.9,4274.8,0.4371]
[1757181600253,0.7007,4274.9,4274.8,0.238]
[1757181601756,0.7007,4274.9,4274.4,0.238]
[1757181602049,0.818,4274.5,4274.4,0.4371]
[1757181602452,0.7007,4273.9,4273.8,3.2078]
[1757181602650,0.5202,4273.5,4273.4,0.7054]
[1757181602854,0.117,4273.5,4273.4,0.7054]
[1757181603149,0.319,4273.5,4273.4,0.7054]
[1757181603345,0.935,4273.5,4273.4,0.4111]
[1757181603547,0.6372,4273.5,4273.3,3.2078]
[1757181603853,0.7007,4273.4,4273.3,3.4458]
[1757181604254,0.7007,4273.4,4273.3,4.1512]
[1757181604255,0.4998,4273.4,4273.3,4.1512]
[1757181604551,0.2343,4273.5,4273.3,4.1512]
[1757181604552,0.117,4273.5,4273.4,0.7054]
[1757181604760,0.935,4273.5,4273.4,0.9434]
[1757181608960,0.935,4273.5,4273.4,0.6491]
[1757181609753,0.7007,4273.4,4273.3,3.2078]
[1757181611156,0.7007,4273.4,4273.3,3.4069]
[1757181616563,0.7007,4273.4,4273.3,3.6189]
[1757181617463,0.7007,4273.4,4273.3,3.9132]
[1757181617756,0.117,4273.5,4273.3,3.9132]
[1757181617959,0.2978,4274.4,4273.5,0.2064]
[1757181618164,0.4998,4274.4,4274.3,0.6175]
[1757181618559,0.2978,4274.4,4274.3,0.6175]
[1757181621267,0.4998,4274.4,4274.3,0.6175]
[1757181622861,0.4168,4274.4,4273.8,3.4151]
[1757181623068,0.4168,4274.4,4274.3,0.4138]
[1757181623268,0.202,4274.4,4274.3,0.6211]
[1757181623564,0.4973,4274.4,4274.3,0.6211]
[1757181624668,0.2953,4274.9,4274.8,0.4138]
[1757181624871,0.2953,4274.9,4274.8,0.6211]
[1757181625264,0.5095,4274.9,4274.8,0.4138]
[1757181625464,0.7243,4274.9,4274.8,0.4138]
[1757181629369,0.7243,4274.9,4274.8,0.6211]
[1757181630472,0.7243,4274.9,4274.8,0.4138]
[1757181632064,0.2953,4274.8,4274.3,3.4448]
[1757181632270,0.6303,4274.5,4274.4,0.4138]
[1757181632472,0.8451,4274.5,4274.4,0.2051]
[1757181632772,0.8451,4274.5,4274.4,0.4138]
[1757181633174,0.8451,4274.5,4274.4,0.619]
[1757181634778,0.8451,4274.5,4274.4,0.4138]
[1757181635379,0.4161,4274.5,4274.4,0.619]
[1757181635681,0.6303,4274.5,4274.4,0.619]
[1757181637674,0.4161,4274.5,4274.4,0.619]
[1757181637877,0.2953,4274.5,4274.4,0.619]
[1757181641772,0.2953,4274.9,4274.8,0.619]
[1757181642078,0.2953,4274.9,4274.8,0.856]
[1757181642278,0.2953,4274.9,4274.8,4.0638]
[1757181643275,0.5095,4274.9,4274.8,4.0638]
[1757181643482,0.7243,4274.9,4274.8,3.8586]
[1757181644279,0.7243,4274.9,4274.8,4.0638]
[1757181644480,0.5095,4274.9,4274.8,4.0638]
[1757181647878,0.2953,4274.9,4274.8,4.0638]
[1757181648279,0.5095,4274.9,4274.8,4.0638]
[1757181650192,0.2953,4274.9,4274.8,4.0638]
[1757181651986,0.4958,4274.9,4274.8,4.0638]
[1757181656892,0.1173,4275.5,4274.8,3.8586]
[1757181657094,1.53724596,4275.4,4275.3,0.2028]
[1757181657394,1.53724596,4275.4,4275.3,0.4398]
[1757181657690,1.30333596,4275.4,4275.3,0.4398]
[1757181660188,1.30333596,4275.4,4275.3,0.237]
[1757181660394,0.1254,4275.0,4274.9,0.237]
[1757181660595,0.83,4275.0,4274.9,0.237]
[1757181660794,0.83,4275.0,4274.8,3.2078]
[1757181660795,1.42875054,4275.0,4274.8,3.2078]
[1757181661093,0.5204,4275.0,4274.9,0.237]
[1757181661290,1.11914007,4275.0,4274.9,0.237]
[1757181661491,1.42874007,4275.0,4274.9,0.237]
[1757181668998,1.42874007,4275.0,4274.3,3.2078]
[1757181669302,0.83,4274.5,4274.4,0.236]
[1757181675910,0.83,4274.5,4274.4,0.4388]
[1757181677313,0.83,4274.5,4274.4,0.236]
[1757181677503,0.83,4274.5,4274.4,0.4388]
[1757181677699,0.83,4274.5,4274.4,0.6354]
[1757181678308,0.6355,4274.5,4274.4,0.8419]
[1757181678510,0.3096,4274.5,4274.4,0.8419]
[1757181679315,0.5137,4274.6,4274.5,0.2109]
[1757181679512,0.4295,4274.5,4274.3,3.2078]
[1757181679709,0.7255,4274.4,4274.3,3.2078]
[1757181679907,0.7255,4274.4,4274.3,3.4438]
[1757181680106,0.7255,4274.4,4274.3,3.6547]
[1757181680607,0.7255,4274.4,4274.3,0.6466]
[1757181681210,0.7255,4274.4,4274.3,0.8541]
[1757181682210,0.5154,4274.4,4274.3,0.8541]
[1757181682413,0.3036,4274.4,4274.3,0.8541]
[1757181682614,0.1254,4275.0,4274.3,0.8541]
[1757181682615,0.429,4275.0,4274.9,0.6181]
[1757181682910,0.429,4275.0,4274.9,0.8541]
[1757181683616,0.1173,4275.5,4275.4,0.6181]
[1757181683617,0.3036,4275.5,4275.4,0.6181]
[1757181683914,0.3036,4275.5,4275.4,0.8541]
[1757181685814,3.2078,4275.9,4275.5,0.2075]
[1757181686117,3.9333,4275.9,4275.8,0.4106]
[1757181686317,3.9333,4275.9,4275.8,0.6466]
[1757181689119,3.9333,4275.9,4275.8,0.4469]
[1757181689518,3.9333,4275.9,4275.8,0.236]
[1757181691522,3.9333,4275.9,4275.8,0.4469]
[1757181691712,0.7255,4275.9,4275.8,0.6466]
[1757181691912,0.1259,4275.5,4275.3,3.2078]
[1757181692116,0.8514,4275.5,4275.4,0.6476]
[1757181692317,0.8514,4275.5,4275.4,0.4106]
[1757181692523,0.8514,4275.5,4275.4,0.6476]
[1757181692719,0.8514,4275.5,4275.4,0.2109]
[1757181692926,0.5478,4275.5,4275.4,0.237]
[1757181693523,0.8514,4275.5,4275.4,0.237]
[1757181694223,0.8514,4275.5,4275.4,0.4479]
[1757181703934,0.8514,4275.5,4275.4,0.6476]
[1757181704628,0.5478,4275.5,4275.3,3.2078]
[1757181704835,0.5478,4275.5,4274.2,35.78056242]
[1757181704836,0.7255,4274.9,4274.8,3.2078]
[1757181705327,0.7255,4274.9,4274.8,3.4448]
[1757181711537,0.7255,4274.9,4274.8,3.6531]
[1757181715328,0.3036,4274.9,4274.8,4.061]
[1757181715727,0.7211,4274.9,4274.8,3.8555]
[1757181718742,0.7211,4274.9,4274.8,4.061]
[1757181724147,0.5166,4274.9,4274.8,4.061]
[1757181724541,0.3036,4274.9,4274.8,4.061]
[1757181726144,0.1259,4275.5,4274.8,3.8555]
[1757181726350,0.293,4275.4,4275.3,0.6162]
[1757181726550,0.506,4275.4,4275.3,0.8522]
[1757181727251,0.7105,4275.4,4275.3,0.4443]
[1757181732155,0.8317,4275.0,4274.9,0.236]
[1757181732358,0.8317,4275.0,4274.3,3.4133]
[1757181732655,0.8317,4274.5,4274.4,0.4443]
[1757181732850,0.8317,4274.5,4274.4,0.2083]
[1757181733057,0.293,4274.4,4274.3,3.4438]
[1757181733249,0.7105,4274.4,4274.3,3.4438]
[1757181733559,0.293,4274.4,4274.3,4.06]
[1757181733856,0.3389,4275.5,4275.4,0.4107]
[1757181734149,0.93634694,4275.5,4275.4,0.6162]
[1757181734456,1.22934694,4275.5,4275.4,0.6162]
[1757181734956,0.6319,4275.5,4275.4,0.6162]
[1757181736758,0.293,4275.5,4275.4,0.6162]
[1757181740064,0.6247,4275.5,4275.4,0.6162]
[1757181740858,0.293,4275.5,4275.4,0.6162]
[1757181742359,0.6247,4275.5,4275.4,0.6162]
[1757181742566,0.8262,4275.5,4275.4,0.4107]
[1757181743162,0.8262,4275.5,4275.4,0.6162]
[1757181743562,0.6247,4275.5,4275.4,0.6162]
[1757181743966,0.4128,4275.5,4275.4,0.6162]
[1757181744168,0.293,4275.5,4275.4,0.6162]
[1757181745772,0.6247,4275.5,4275.4,0.6162]
[1757181750677,0.6247,4275.5,4275.4,0.8522]
[1757181750978,0.6247,4275.5,4275.4,0.6467]
[1757181751877,0.8262,4275.5,4275.4,0.6467]
[1757181753179,0.8262,4275.5,4275.4,0.853]
[1757181756080,3.2078,4276.4,4275.4,0.853]
[1757181756279,0.6242,4276.0,4275.9,0.404]
[1757181756582,0.6242,4276.0,4275.9,0.64]
[1757181758076,0.8257,4276.0,4275.9,0.64]
[1757181759784,0.8257,4276.0,4275.9,0.236]
[1757181761685,0.1198,4275.5,4275.4,0.2051]
[1757181761894,0.1198,4275.5,4275.4,0.4411]
[1757181761895,0.8282,4275.5,4275.4,0.4411]
[1757181762193,0.8282,4275.5,4275.4,0.64]
[1757181762685,0.8282,4275.5,4275.4,0.8463]
[1757181763087,0.6267,4275.5,4275.4,0.8463]
[1757181763593,0.295,4275.5,4275.4,0.8463]
[1757181764686,0.1173,4276.0,4275.5,0.2063]
[1757181764882,0.1173,4276.0,4275.9,0.2051]
[1757181764883,0.5307,4276.0,4275.9,0.2051]
[1757181765089,0.5307,4276.0,4275.9,0.4411]
[1757181765390,0.8257,4276.0,4275.9,0.4411]
[1757181766290,0.8257,4276.0,4275.9,0.236]
[1757181767289,0.5332,4275.5,4275.4,0.2051]
[1757181767487,0.5332,4275.5,4275.4,0.8463]
[1757181767488,0.8282,4275.5,4275.4,0.8463]
[1757181767688,0.4148,4275.5,4275.4,0.8463]
[1757181768196,0.295,4275.5,4275.4,0.8463]
[1757181768789,0.3149,4276.0,4275.9,0.3941]
[1757181769095,0.8242,4276.0,4275.9,0.6301]
[1757181772002,0.8242,4276.0,4275.9,0.4337]
[1757181772203,0.8242,4276.0,4275.9,0.236]
[1757181774706,0.3007,4275.9,4275.8,3.2078]
[1757181774904,0.7069,4275.9,4275.8,3.4438]
[1757181776499,0.7069,4275.9,4275.8,3.8379]
[1757181776699,0.3007,4276.3,4276.2,0.3941]
[1757181776895,0.4983,4276.3,4276.2,0.6301]
[1757181777101,0.7069,4276.3,4276.2,0.6301]
[1757181779610,0.4983,4276.3,4276.2,0.8364]
[1757181779911,0.7069,4276.3,4276.2,0.236]
[1757181780097,0.7069,4276.3,4276.2,0.4337]
[1757181784099,0.7069,4276.3,4276.2,0.6301]
[1757181785606,0.7069,4276.3,4275.8,3.2078]
[1757181785917,0.7069,4275.4,4275.3,3.4055]
[1757181786111,0.7069,4275.4,4275.3,3.6415]
[1757181787111,0.7069,4275.4,4275.3,3.4055]
[1757181787319,0.7069,4274.8,4274.7,3.4055]
[1757181787509,0.7069,4274.8,4274.7,3.6415]
[1757181788017,0.7069,4274.8,4274.7,3.4438]
[1757181789611,0.7069,4274.8,4274.7,3.2078]
[1757181791512,0.7069,4274.8,4274.6,0.236]
[1757181797925,0.7069,4274.8,4274.7,0.1977]
[1757181799427,0.7069,4274.8,4274.6,0.236]
[1757181800922,0.6892,4274.1,4274.0,3.2078]
[1757181801120,0.6892,4274.1,4274.0,3.4438]
[1757181801521,0.2924,4274.1,4274.0,4.0526]
[1757181802126,0.3169,4274.5,4274.4,0.4027]
[1757181802325,0.3169,4274.5,4274.4,0.6088]
[1757181802724,0.6093,4274.5,4274.4,0.6088]
[1757181807632,0.6093,4274.5,4274.4,0.4027]
[1757181807832,0.8125,4274.5,4274.4,0.4027]
[1757181812832,0.2924,4274.5,4274.4,0.8452]
[1757181813035,0.2924,4274.9,4274.8,0.4027]
[1757181813245,0.2924,4274.9,4274.8,0.8452]
[1757181815645,0.486,4274.9,4274.8,0.8452]
[1757181817553,0.2924,4274.8,4274.6,3.2078]
[1757181817749,0.6892,4274.8,4274.1,3.2078]
[1757181817944,0.6189,4274.5,4274.4,0.2072]
[1757181818153,0.8125,4274.5,4274.4,0.2072]
[1757181819351,0.8125,4274.5,4274.4,0.4027]
[1757181819952,0.1173,4275.0,4274.4,4.63665]
[1757181820146,0.1173,4275.0,4273.2,34.73585]
[1757181820147,0.8065,4275.5,4275.4,0.2072]
[1757181827755,0.8065,4275.5,4275.3,0.236]
[1757181833549,0.1199,4274.5,4274.0,3.2078]
[1757181833748,0.7224,4274.2,4274.1,0.236]
[1757181834347,0.4069,4274.2,4274.0,3.2078]
[1757181834547,0.7224,4274.2,4274.1,0.236]
[1757181835758,0.7224,4274.2,4274.1,0.4333]
[1757181837861,0.7224,4274.2,4274.1,0.1973]
[1757181838050,0.7224,4274.2,4274.1,0.4333]
[1757181840257,0.7224,4274.2,4274.1,0.7489]
[1757181840861,0.7224,4274.2,4274.1,0.9465]
[1757181843367,0.7224,4274.2,4274.1,0.6309]
[1757181843964,0.7224,4274.2,4274.1,0.9465]
[1757181844767,0.7224,4274.2,4274.1,4.1543]
[1757181845067,0.7224,4274.2,4274.1,3.6411]
[1757181845268,0.7224,4274.2,4274.1,3.4438]
[1757181846061,0.7224,4274.2,4274.1,3.2078]
[1757181846565,0.7224,4274.2,4274.1,3.4438]
[1757181846971,0.7224,4274.2,4274.1,3.6411]
[1757181850064,0.7224,4274.2,4274.1,3.9567]
[1757181850460,0.7224,4274.2,4274.1,3.6411]
[1757181851571,0.7224,4274.2,4274.1,3.4438]
[1757181852070,0.7224,4274.2,4274.1,3.6411]
[1757181852871,0.7224,4274.2,4274.1,0.4333]
[1757181853175,0.7224,4273.3,4273.2,33.9986]
[1757181853374,0.7224,4273.3,4273.2,34.2346]
[1757181857271,0.5177,4273.3,4273.2,34.2346]
[1757181857478,0.7224,4273.9,4273.8,0.1973]
[1757181857778,0.7224,4273.9,4273.8,0.7489]
[1757181857979,0.7224,4273.9,4273.8,0.9465]
[1757181858170,0.3155,4274.3,4274.2,0.3949]
[1757181858372,0.3155,4274.3,4274.2,0.9465]
[1757181859679,0.524,4274.3,4274.2,0.9465]
[1757181867276,0.7179,4274.3,4274.2,0.9465]
[1757181867477,0.7179,4274.3,4274.2,0.236]
[1757181867674,0.5257,4274.0,4273.9,0.236]
[1757181867875,0.8312,4274.0,4273.9,0.236]
[1757181868276,0.7079,4273.9,4273.8,0.236]
[1757181868477,0.7079,4273.9,4273.8,0.9587]
[1757181868683,0.514,4273.9,4273.8,0.9587]
[1757181868880,0.3055,4274.4,4273.8,0.6367]
[1757181869081,0.8278,4274.5,4274.4,0.197]
[1757181872182,0.8278,4274.5,4273.8,0.236]
[1757181872384,0.8278,4274.5,4273.9,0.322]
[1757181873384,0.8278,4274.5,4274.4,0.197]
[1757181874184,0.8278,4274.5,4274.4,0.4007]
[1757181874385,0.8278,4274.5,4274.4,0.7227]
[1757181874882,0.8278,4274.5,4274.4,0.4007]
[1757181875379,0.8278,4274.5,4273.9,0.236]
[1757181875576,0.8312,4274.0,4273.9,0.433]
[1757181875773,0.8312,4274.0,4273.9,0.755]
[1757181875978,0.8312,4274.0,4273.9,0.9587]
[1757181878585,0.7079,4274.0,4273.9,0.9587]
[1757181878785,0.514,4274.0,4273.9,0.9587]
[1757181880982,0.3055,4274.0,4273.9,0.9587]
[1757181881385,0.3055,4274.4,4274.0,0.1161]
[1757181881682,0.514,4274.9,4274.8,0.7227]
[1757181881879,0.514,4274.9,4274.8,0.9587]
[1757181886781,0.4024,4274.9,4274.7,3.2078]
[1757181886988,0.7079,4274.9,4274.8,0.433]
[1757181887384,0.7079,4274.9,4274.8,0.9587]
[1757181889891,0.5288,4275.5,4275.4,0.4075]
[1757181890092,0.5288,4275.5,4275.4,0.9406]
[1757181890487,0.8387,4275.5,4275.4,0.9406]
[1757181890684,0.7188,4275.5,4275.4,0.9406]
[1757181891889,0.8441,4275.5,4275.4,0.9406]
[1757181893895,0.7188,4275.5,4275.4,0.9406]
[1757181894496,0.8441,4275.5,4275.4,0.9406]
[1757181895796,0.7188,4275.5,4275.4,0.9406]
[1757181896490,0.5242,4275.5,4275.4,0.9406]
[1757181897599,0.3099,4275.5,4275.4,0.9406]
[1757181898497,0.1233,4276.0,4275.5,0.2971]
[1757181898701,0.8421,4276.0,4275.9,0.5073]
[1757181898900,0.8421,4276.0,4275.9,0.7433]
[1757181900202,0.8421,4276.0,4275.9,0.4462]
[1757181900398,0.4089,4275.2,4275.1,3.7151]
[1757181900610,0.7188,4275.2,4275.1,4.1484]
[1757181901105,0.7188,4275.2,4275.1,3.9124]
[1757181901309,0.7188,4275.2,4275.1,3.4438]
[1757181901711,0.7188,4275.2,4275.1,3.2078]
[1757181901910,0.7188,4275.2,4275.1,3.4438]
[1757181903115,0.7188,4275.2,4275.1,0.4462]
[1757181903507,0.7188,4275.2,4275.1,0.236]
[1757181904311,0.7188,4275.2,4275.1,0.9406]
[1757181905014,0.7188,4275.2,4275.1,0.236]
[1757181905913,0.7188,4275.2,4275.1,0.9406]
[1757181908216,0.7188,4275.2,4275.1,0.6435]
[1757181910215,0.7188,4275.2,4275.1,0.9406]
[1757181910720,0.7188,4275.2,4275.1,0.6435]
[1757181912118,0.7188,4275.2,4275.1,0.9406]
[1757181913318,0.7188,4275.2,4275.1,0.6435]
[1757181915010,0.7188,4275.2,4275.1,0.9406]
[1757181915210,0.3099,4275.9,4275.7,0.2971]
[1757181915410,4.45262985,4276.9,4275.8,4.1484]
[1757181915610,4.45262985,4276.9,4276.3,0.2102]
[1757181915611,1.01499649,4276.4,4276.3,0.2102]
[1757181916114,1.01499649,4276.4,4276.3,0.7046]
[1757181916320,1.32489649,4276.4,4276.3,0.7046]
[1757181916521,0.5242,4276.4,4276.3,0.7046]
[1757181918118,3.2078,4276.9,4276.3,0.7046]
[1757181918316,0.7188,4276.7,4276.6,0.7046]
[1757181920015,0.7188,4276.7,4276.6,0.4075]
[1757181920217,0.7188,4276.7,4276.5,0.236]
[1757181925028,0.8175,4276.0,4275.9,3.6165]
[1757181925226,0.8175,4276.0,4275.9,3.8525]
[1757181926125,0.8175,4276.0,4275.9,4.1578]
[1757181926523,0.2948,4276.4,4275.9,3.8525]
[1757181926720,3.2078,4276.9,4276.4,0.3053]
[1757181926919,3.7048,4276.9,4276.8,0.4087]
[1757181927123,3.7048,4276.9,4276.8,0.714]
[1757181927324,3.9068,4276.9,4276.8,0.714]
[1757181927828,0.699,4276.9,4276.8,0.714]
[1757181928524,0.699,4276.9,4276.8,0.4087]
[1757181928725,0.699,4276.9,4276.8,0.714]
[1757181928919,0.699,4276.9,4276.8,0.4087]
[1757181931124,0.699,4276.9,4276.8,0.1954]
[1757181932228,0.699,4276.9,4276.6,0.3053]
[1757181932531,0.699,4276.9,4276.4,3.4438]
[1757181932532,0.8175,4276.5,4276.4,3.9445]
[1757181933034,0.8175,4276.5,4276.4,3.6392]
[1757181933723,0.8175,4276.5,4276.4,4.1578]
[1757181934730,0.497,4276.5,4276.4,4.1578]
[1757181935127,0.699,4276.5,4276.4,4.1578]
[1757181938137,0.699,4276.9,4276.8,0.1954]
[1757181938436,1.30384471,4276.9,4276.8,0.1954]
[1757181943030,1.30384471,4276.9,4276.8,0.5007]
[1757181943231,1.30384471,4276.9,4276.8,0.714]
[1757181943736,1.30384471,4276.9,4276.8,0.4087]
[1757181944133,1.30384471,4276.9,4276.8,0.1954]
[1757181950242,1.30384471,4276.9,4276.8,0.5088]
[1757181950645,1.30384471,4276.9,4276.8,0.1954]
[1757181951745,1.30384471,4276.9,4276.8,0.723]
[1757181952345,1.30384471,4276.9,4276.8,0.4096]
[1757181954043,1.30384471,4276.9,4276.8,0.1954]
[1757181955945,1.30384471,4276.9,4276.7,0.236]
[1757181956145,1.33994471,4276.8,4276.7,0.236]
[1757181956344,1.33994471,4276.8,4276.7,0.4322]
[1757181957047,1.33994471,4276.8,4276.7,0.9598]
[1757181957246,1.33994471,4276.8,4276.7,0.6464]
[1757181957450,0.7351,4276.8,4276.7,0.6464]
[1757181962151,0.7351,4276.8,4276.7,0.9598]
[1757181963254,0.5327,4276.8,4276.7,0.9598]
[1757181963445,0.7351,4276.8,4276.7,0.6464]
[1757181963647,0.7351,4276.8,4276.7,0.236]
[1757181964353,0.7351,4276.8,4276.7,0.4322]
[1757181967258,0.7351,4276.8,4276.7,0.236]
[1757181971951,0.7351,4276.8,4276.7,0.4322]
[1757181972257,0.7351,4276.8,4276.7,0.236]
[1757181975858,0.8551,4276.0,4275.9,3.404]
[1757181976062,0.8551,4276.0,4275.9,3.2078]
[1757181976762,5.46158693,4276.0,4275.9,1.8566587]
[1757181976964,5.69545693,4276.0,4275.9,1.8566587]
[1757181978461,8.76711219,4276.0,4274.6,0.3134]
[1757181978653,3.2078,4275.1,4274.5,0.3368]
[1757181979061,3.2078,4275.1,4274.6,0.3115]
[1757181979259,3.2078,4275.1,4274.5,0.3368]
[1757181979558,3.2078,4275.1,4274.6,0.3115]
[1757181979762,3.2078,4275.1,4274.2,0.3115]
[1757181979763,0.236,4275.0,4274.2,0.3115]
[1757181979965,3.2078,4274.5,4274.2,0.3115]
[1757181980764,0.19570306,4274.4,4274.0,0.1159]
[1757181981064,3.2078,4274.5,4274.0,0.4274]
[1757181981260,0.19569124,4274.4,4274.1,0.3115]